Cogmind - Beta 15 @@@ ROGUE MODE // 2025.10.17 @ 20:50:09 Player: kim.jet.wav Result: Destroyed by G-67 Veteran with Field Laser Performance ------------- Evolutions (6) 3000 Regions Visited (14) 2800 Robots Destroyed (30) 150 Value Destroyed (1029) 1029 Prototype IDs (2) 40 Alien Tech Used (0) 0 Bonus (732) 732 TOTAL SCORE: 7751 Bonus ------- High Alert Combat Kills 32 Entered Garrisons 200 Entered DSFs 500 Cogmind --------- Core Integrity 0/1150 Matter 293/300 Energy 99/100 System Corruption 7% Temperature Cool (21) Movement Core (50) Location -4/Extension Parts ------- > --- POWER (4) -------- (None) > --- PROPULSION (7) --- (None) > --- UTILITY (5) ------ (None) > --- WEAPON (3) ------- (None) > --- INVENTORY (5) ---- Light Ion Engine Improved Gyrokinetic Inverter Improved Heat Sink Autogun Heavy Mace Peak State ------------ > --- POWER ------------ Neutrino Core Micro Fission Core Micro Fission Core > --- PROPULSION ------- Antigrav System Antigrav System Antigrav System Antigrav System Improved Gyrokinetic Inverter Improved Linear Gravjet > --- UTILITY ---------- Advanced Heat Sink Improved Target Analyzer Advanced Reaction Control System Drone Bay > --- WEAPON ----------- High-powered Shock Rifle Tesla Rifle Heavy Mace > --- INVENTORY -------- Light Ion Engine Improved Heat Sink Improved Remote Datajack [Rating: 93] Favorites ----------- Power Light Nuclear Core Engine Ion Engine Power Core Light Nuclear Core Propulsion Flight Unit Leg Aluminum Leg Hover Unit Antigrav System Flight Unit Flight Unit Utility Improved Sensor Array Device Improved Sensor Array Storage Medium Storage Unit Processor Improved Target Analyzer Weapon EM Pulse Gun Energy Gun EM Pulse Gun Ballistic Gun Autogun Ballistic Cannon Heavy Gauss Cannon Launcher Grenade Launcher Special Weapon Improved Remote Datajack Impact Weapon Heavy Mace Special Melee Weapon Improved Datajack Build | -11 -10 -10 -10 -9 -8 -7 -7 -6 -6 -6 -5 -5 -4 -4 ------- Run | Yrd Mat Min Exi Min Mat Fac Gar Fac Low Low Fac DSF Fac Ext Slots Evolved 12 | . . . . . 4 2 . 2 . . 2 . 2 . Power 3 | . . . . . 1 1 . 1 . . . . . . Propulsion 5 | . . . . . 1 1 . . . . 2 . 1 . Utility 3 | . . . . . 1 . . 1 . . . . 1 . Weapon 1 | . . . . . 1 . . . . . . . . . Parts Attached 68 | 7 4 1 2 . 3 6 1 6 3 . . 1 20 14 Power 15 | 1 . . 1 . 1 . . 4 1 . . . 3 4 Engine 4 | 1 . . 1 . 1 . . . . . . . . 1 Core 11 | . . . . . . . . 4 1 . . . 3 3 Reactor . | . . . . . . . . . . . . . . . Propulsion 24 | 2 2 . . . 1 4 1 1 . . . . 8 5 Treads . | . . . . . . . . . . . . . . . Leg 2 | 2 . . . . . . . . . . . . . . Wheel . | . . . . . . . . . . . . . . . Hover 11 | . . . . . . 4 . . . . . . 6 1 Flight 11 | . 2 . . . 1 . 1 1 . . . . 2 4 Utility 15 | 2 1 1 1 . 1 1 . 1 1 . . 1 4 1 Device 12 | 1 . 1 1 . 1 1 . 1 1 . . 1 3 1 Storage 2 | 1 1 . . . . . . . . . . . . . Processor 1 | . . . . . . . . . . . . . 1 . Hackware . | . . . . . . . . . . . . . . . Protection . | . . . . . . . . . . . . . . . Artifact . | . . . . . . . . . . . . . . . Weapon 14 | 2 1 . . . . 1 . . 1 . . . 5 4 Energy Gun 6 | 2 . . . . . . . . . . . . 2 2 Energy Cannon . | . . . . . . . . . . . . . . . Ballistic Gun 1 | . . . . . . . . . . . . . . 1 Ballistic Cannon 1 | . . . . . . . . . . . . . 1 . Launcher 2 | . 1 . . . . . . . 1 . . . . . Special Weapon 2 | . . . . . . . . . . . . . 1 1 Impact Weapon 1 | . . . . . . . . . . . . . 1 . Slashing Weapon . | . . . . . . . . . . . . . . . Piercing Weapon . | . . . . . . . . . . . . . . . Special Melee Weapon 1 | . . . . . . 1 . . . . . . . . Unidentified Prototypes 2 | . . . . . . . . . . . . . 2 . Corrupted Parts 3 | . . 1 . . . . . . . . . . . 2 System Corruption 7 | . . 3 . . . . . . . . . . . 4 Parts Lost 40 | . 1 . . . . 1 . 1 . . . 8 8 21 Power 9 | . . . . . . . . . . . . 3 1 5 Propulsion 17 | . . . . . . . . . . . . 4 4 9 Utility 6 | . . . . . . 1 . . . . . . 1 4 Weapon 8 | . 1 . . . . . . 1 . . . 1 2 3 Highest Loss Streak 13 | . 1 . . . . 1 . 1 . . . 8 6 13 To Critical Strikes . | . . . . . . . . . . . . . . . Average Backups 3 | . 2 4 4 4 4 4 4 4 5 5 5 3 1 2 Power . | . 1 1 1 1 . . . . . . . . . 1 Propulsion 1 | . . 1 2 2 1 3 4 4 3 3 3 2 . . Utility . | . . . . . 1 . . . 1 1 1 . . . Weapon . | . . 1 1 1 1 . . . . 1 1 1 1 . Tool/Special . | . . . . . . . . . . . . . . . Unused Backups 6 | . . . 1 . . 3 . 1 . . . . . 1 Power 1 | . . . 1 . . . . . . . . . . . Propulsion 1 | . . . . . . 1 . . . . . . . . Utility 3 | . . . . . . 2 . . . . . . . 1 Weapon 1 | . . . . . . . . 1 . . . . . . Tool/Special . | . . . . . . . . . . . . . . . Average Slot Usage (%) 71 | . 87 71 76 85 73 76 84 84 86 86 76 39 28 57 Engine 7 | . 14 14 14 14 17 15 15 7 . . . . . . Core 6 | . . . . . . . . 10 26 26 23 9 3 10 Leg 3 | . 16 . . . . . . . . . . . . . Hover 5 | . . . . . . 24 4 . . . . . 10 19 Flight 14 | . 5 28 28 28 27 4 25 26 26 26 23 12 1 3 Device 16 | . 14 14 19 28 20 22 23 25 26 26 23 13 2 8 Storage 2 | . 11 . . . . . . . . . . . . . Energy Gun 8 | . 23 11 14 14 9 4 7 5 . . . . 3 2 Special Melee Weapon 1 | . . . . . . 3 7 6 6 6 5 2 . . Peak Build Rating 93 | 7 7 8 15 15 19 33 32 39 43 40 40 44 80 93 Average Rating 26 | 5 6 6 10 15 18 29 24 33 38 40 40 21 31 59 On Entrance 23 | . 7 5 7 15 15 19 33 24 38 40 40 40 . 70 Naked Turns 50 | . . . . . . . . . . . . 24 3 23 Heaviest Build 47 | 15 21 9 8 8 12 15 15 28 28 28 28 28 40 47 Greatest Support 65 | 20 20 8 8 8 12 36 17 28 28 28 28 28 65 56 Greatest Overweight (x) 4 | 4 4 1 . . . 1 . . . . . . 2 1 Average Overweight (x) . | . . . . . . . . . . . . . . . Largest Inventory Capacity 10 | 8 10 5 5 5 5 5 5 5 5 5 5 5 5 5 Average Capacity 5 | 7 9 5 5 5 5 5 5 5 5 5 5 5 5 5 Most Carried 5 | 1 5 5 5 4 5 5 4 5 5 5 5 5 3 5 Average Carried 3 | . 2 4 4 4 4 4 4 4 4 5 5 3 1 2 Final Capacity 8 | 8 5 5 5 5 5 5 5 5 5 5 5 5 5 5 Final Carried 5 | 1 4 5 4 4 5 4 4 5 5 5 5 2 3 5 Class Distribution -------------------- 48% | Mutant 19% | Infiltrator-Sprinter 18% | Scavenger-Mutant 7% | Infiltrator-Mutant 6% | Scavenger-Sprinter Dominant Class ---------------- Mutant | -10/Materials Mutant | -10/Mines Mutant | -10/Exiles Mutant | -9/Mines Scavenger-Mutant | -8/Materials Infiltrator-Mutant | -7/Factory Scavenger-Sprinter | -7/Garrison Infiltrator-Sprinter | -6/Factory Infiltrator-Sprinter | -6/Lower Caves Infiltrator-Sprinter | -6/Lower Caves Infiltrator-Sprinter | -5/Factory Mutant | -5/DSF Mutant | -4/Factory Scavenger-Mutant | -4/Extension Resources | -11 -10 -10 -10 -9 -8 -7 -7 -6 -6 -6 -5 -5 -4 -4 ----------- Run | Yrd Mat Min Exi Min Mat Fac Gar Fac Low Low Fac DSF Fac Ext Matter Collected 1204 | 270 105 28 . 42 20 55 . . 155 . . 2 378 149 Remotely . | . . . . . . . . . . . . . . . Salvage Created 865 | 86 94 28 . . . . . . . . . . 399 258 Parts 57 | 8 13 4 . . . . . . . . . . 22 10 Haulers Intercepted . | . . . . . . . . . . . . . . . Recyclers Shooed . | . . . . . . . . . . . . . . . Parts Field Recycled . | . . . . . . . . . . . . . . . Retrieved Matter . | . . . . . . . . . . . . . . . Parts Self-Destructed 1 | . . . . . . . . . 1 . . . . . Prevented 2 | . . . . . . . . . 2 . . . . . Kills | -11 -10 -10 -10 -9 -8 -7 -7 -6 -6 -6 -5 -5 -4 -4 ------- Run | Yrd Mat Min Exi Min Mat Fac Gar Fac Low Low Fac DSF Fac Ext Combat Hostiles Destroyed 25 | . 6 3 . . . . . . . . . . 10 6 Melee 2 | . . . . . . . . . . . . . . 2 Guns 5 | . 2 . . . . . . . . . . . . 3 Cannons 4 | . . . . . . . . . . . . . 4 . AOE 11 | . 4 3 . . . . . . . . . . 4 . Classes Destroyed 8 | 2 3 . . . . . . . . . . . 3 . Worker 2 | . 1 . . . . . . . . . . . 1 . Tunneler 1 | 1 . . . . . . . . . . . . . . Recycler 1 | 1 . . . . . . . . . . . . . . Operator 1 | . 1 . . . . . . . . . . . . . Swarmer 16 | . 6 3 . . . . . . . . . . 4 3 Grunt 5 | . . . . . . . . . . . . . 3 2 Sentry 1 | . . . . . . . . . . . . . 1 . Programmer 3 | . . . . . . . . . . . . . 2 1 Best Kill Streak 8 | 2 4 3 . . . . . . . . . . 8 3 Combat Bots Only 8 | . 3 3 . . . . . . . . . . 8 3 Max Kills in Single Turn 4 | 1 3 3 . . . . . . . . . . 4 1 Gunslinging . | . . . . . . . . . . . . . . . Exploded 4 | . 3 3 . . . . . . . . . . 4 . Melee 1 | . . . . . . . . . . . . . . 1 Uniques/NPCs Destroyed . | . . . . . . . . . . . . . . . Combat | -11 -10 -10 -10 -9 -8 -7 -7 -6 -6 -6 -5 -5 -4 -4 -------- Run | Yrd Mat Min Exi Min Mat Fac Gar Fac Low Low Fac DSF Fac Ext Hostile Shots Fired 391 | . 16 1 . 1 . 43 22 17 3 10 . 46 79 153 Missed 165 | . 3 . . 1 . 28 17 11 2 5 . 14 32 52 Hits 226 | . 13 1 . . . 15 5 6 1 5 . 32 47 101 Melee 20 | . . . . . . . . . . . . 20 . . Projectile 206 | . 13 1 . . . 15 5 6 1 5 . 12 47 101 Critical Strikes 20 | . 1 . . . . . . . . . . 11 2 6 Damage Taken 4524 | . 99 19 . . . 128 52 67 32 84 . 823 1205 2015 Core 1826 | . 16 11 . . . 17 17 . 32 . . 580 235 918 Absorbed by Shields 73 | . . . . . . . . . . . . 44 . 29 Ignored by Resistances 57 | . . . . . . . . . . . . . 57 . Core Remaining (%) 87 | 100 . . . 89 100 . 95 . . 96 . 42 . . Volleys Fired 43 | 5 8 1 . . . . . . . . . . 19 10 Largest 2 | 2 2 1 . . . . . . . . . . 2 2 Hottest 125 | 80 80 30 . . . . . . . . . . 101 125 Shots Fired 62 | 10 13 1 . . . . . . . . . . 21 17 Gun 39 | 10 10 . . . . . . . . . . . 3 16 Cannon 18 | . . . . . . . . . . . . . 18 . Launcher 4 | . 3 1 . . . . . . . . . . . . Special 1 | . . . . . . . . . . . . . . 1 Kinetic 18 | . . . . . . . . . . . . . 18 . Thermal 1 | . . . . . . . . . . . . . 1 . Explosive 4 | . 3 1 . . . . . . . . . . . . Electromagnetic 38 | 10 10 . . . . . . . . . . . 2 16 Robot Hit Streak 7 | 4 3 . . . . . . . . . . . 7 2 Robot Miss Streak 5 | 1 3 . . . . . . . . . . . 2 5 Penetration Max 1 | . . . . . . . . . . . . . 1 . Secondary Targets . | . . . . . . . . . . . . . . . Shots Hit Robots 52 | 6 5 . . . . 1 3 . . . . . 17 20 Core Hits 35 | 2 9 3 . . . . . . . . . . 13 8 Critical Kills . | . . . . . . . . . . . . . . . Critical Parts Destroyed 2 | . . . . . . . . . . . . . 1 1 Critical Strikes 6 | . 1 . . . . . . . . . . . 2 3 Blast 1 | . . . . . . . . . . . . . 1 . Corrupt 3 | . 1 . . . . . . . . . . . . 2 Smash 2 | . . . . . . . . . . . . . 1 1 Melee Attacks 29 | . . . . . . 1 3 . . . . . 6 19 Impact 25 | . . . . . . . . . . . . . 6 19 Slashing . | . . . . . . . . . . . . . . . Piercing . | . . . . . . . . . . . . . . . Sneak Attacks 1 | . . . . . . 1 . . . . . . . . Combat Hostiles . | . . . . . . . . . . . . . . . Follow-up Attacks . | . . . . . . . . . . . . . . . Damage Inflicted 2573 | 85 348 122 . . . . . . . . . . 1278 740 Guns 334 | 85 67 . . . . . . . . . . . 34 148 Cannons 602 | . . . . . . . . . . . . . 602 . Explosions 900 | . 281 122 . . . . . . . . . . 497 . Melee 737 | . . . . . . . . . . . . . 145 592 Ramming . | . . . . . . . . . . . . . . . Kinetic 602 | . . . . . . . . . . . . . 602 . Thermal 497 | . . . . . . . . . . . . . 497 . Explosive 403 | . 281 122 . . . . . . . . . . . . Electromagnetic 334 | 85 67 . . . . . . . . . . . 34 148 Impact 737 | . . . . . . . . . . . . . 145 592 Slashing . | . . . . . . . . . . . . . . . Piercing . | . . . . . . . . . . . . . . . Highest Corruption 7 | . . 3 3 3 . . . 1 1 1 . . 1 7 Average Corruption 2 | . . 3 3 3 . . . 1 1 1 . . 1 3 Corruption Purged . | . . . . . . . . . . . . . . . Corruption Blocked . | . . . . . . . . . . . . . . . Effects 15 | . . . 2 3 . . . 1 . . . . 1 8 Message Errors 6 | . . . 1 1 . . . 1 . . . . . 3 Matter Fused 4 | . . . 1 . . . . . . . . . . 3 Heat Flow Errors 1 | . . . . . . . . . . . . . . 1 Energy Discharges 1 | . . . . . . . . . . . . . 1 . Data Loss (minor) 2 | . . . . 2 . . . . . . . . . . Data Loss (major) 1 | . . . . . . . . . . . . . . 1 Overload Shots . | . . . . . . . . . . . . . . . Overflow Damage 225 | . 34 . . . . . . . . . . . 126 65 Projectiles . | . . . . . . . . . . . . . . . Explosions 110 | . 34 . . . . . . . . . . . 76 . Melee 115 | . . . . . . . . . . . . . 50 65 Knockbacks 4 | . . . . . . . . . . . . . 1 3 Impact 3 | . . . . . . . . . . . . . . 3 Kinetic 1 | . . . . . . . . . . . . . 1 . Secondary . | . . . . . . . . . . . . . . . Self-Inflicted Damage 388 | . . . . . . . . . . . . . 388 . Shots 5 | . . . . . . . . . . . . . 5 . Rammed . | . . . . . . . . . . . . . . . Targets Rammed . | . . . . . . . . . . . . . . . Kicked . | . . . . . . . . . . . . . . . Crushed . | . . . . . . . . . . . . . . . Highest Temperature 574 | 90 36 . . . . 11 11 7 10 . . . 92 574 Average Temperature 117 | 47 15 . . . . 5 3 4 5 . . . 37 244 Received Heat Transfer 792 | . . . . . . 48 27 21 12 . . . 57 627 Effects 15 | . . . . . . . . . . . . . . 15 Shutdowns 2 | . . . . . . . . . . . . . . 2 Energy Bleed 1 | . . . . . . . . . . . . . . 1 Matter Decay 1 | . . . . . . . . . . . . . . 1 Short Circuit 1 | . . . . . . . . . . . . . . 1 Damage (minor) 3 | . . . . . . . . . . . . . . 3 Damage (major) 7 | . . . . . . . . . . . . . . 7 Siege Activations . | . . . . . . . . . . . . . . . Martial Activations . | . . . . . . . . . . . . . . . Shielding Activations . | . . . . . . . . . . . . . . . Robots Disrupted . | . . . . . . . . . . . . . . . Combat Hostiles . | . . . . . . . . . . . . . . . Robots Corrupted 3 | . . . . . . . . . . . . . 2 1 Combat Hostiles 3 | . . . . . . . . . . . . . 2 1 Parts Fried 4 | . . . . . . . . . . . . . 4 . Impact Corruptions 7 | . . . . . . . . . . . . . 2 5 Robots Melted . | . . . . . . . . . . . . . . . Combat Hostiles . | . . . . . . . . . . . . . . . Parts Melted . | . . . . . . . . . . . . . . . Heat Transferred 250 | . . . . . . . . . . . . . 250 . Parts Sabotaged . | . . . . . . . . . . . . . . . Parts Stolen . | . . . . . . . . . . . . . . . Parts Stripped . | . . . . . . . . . . . . . . . Power Chain Reactions . | . . . . . . . . . . . . . . . Alert | -11 -10 -10 -10 -9 -8 -7 -7 -6 -6 -6 -5 -5 -4 -4 ------- Run | Yrd Mat Min Exi Min Mat Fac Gar Fac Low Low Fac DSF Fac Ext Maximum Alert Level 2 | . . . . . . . . . . . . . 2 1 Low Security (%) 83 | 100 100 100 . 100 100 100 100 100 . . 100 100 57 35 Level 1 13 | . . . . . . . . . . . . . 24 64 Level 2 3 | . . . . . . . . . . . . . 18 . Level 3 . | . . . . . . . . . . . . . . . Level 4 . | . . . . . . . . . . . . . . . Level 5 . | . . . . . . . . . . . . . . . High Security . | . . . . . . . . . . . . . . . Max Security . | . . . . . . . . . . . . . . . Peak Influence 572 | 5 96 86 . 30 30 49 34 60 . . 12 15 572 280 Initial 280 | . 3 27 . . . . 34 17 . . 12 1 7 280 Average 74 | 1 28 50 . 10 6 14 34 24 . . 10 5 175 193 Influence Increases 1697 | 10 214 79 . 30 30 179 . 60 120 30 10 15 743 177 Destroy 0b10 Robot/C 500 | . 120 60 . . . . . . . . . . 200 120 Destroy 0b10 Robot/NC 25 | 10 10 . . . . . . . . . . . 5 . Destroy Leader 70 | . 20 10 . . . . . . . . . . 40 . Successful Hack 56 | . . . . . . 29 . . . . 10 . 5 12 Select Force Hacks 60 | . 30 . . . 30 . . . . . . . . . Disable Machine 165 | . . . . . . . . . . . . . 165 . Destroy Structure 176 | . 19 9 . . . . . . . . . . 148 . Partial Spotted 45 | . . . . . . 45 . . . . . . . . Lose Combat Pursuer 600 | . 15 . . 30 . 105 . 60 120 30 . 15 180 45 Influence Decreases 1670 | 5 148 124 26 30 30 130 15 94 120 10 28 2 186 722 Entered New Map 413 | . 2 44 26 . . . 15 17 . . 8 1 8 292 Time Decay 916 | 5 146 80 . 30 30 120 . 67 120 10 20 . 98 190 Lost Part 311 | . . . . . . 10 . 10 . . . 1 80 210 Lost Ally 30 | . . . . . . . . . . . . . . 30 Squads Dispatched 14 | . 2 . . . 1 2 . 3 . . . 1 3 2 Investigation 6 | . 1 . . . 1 1 . 2 . . . . . 1 Extermination 1 | . . . . . . . . 1 . . . . . . Reinforcement 5 | . 1 . . . . 1 . . . . . 1 1 1 Assault . | . . . . . . . . . . . . . . . Garrison 2 | . . . . . . . . . . . . . 2 . Intercept . | . . . . . . . . . . . . . . . Searches Triggered . | . . . . . . . . . . . . . . . Construction Impeded . | . . . . . . . . . . . . . . . Haulers Reinforced . | . . . . . . . . . . . . . . . Active Scanning Responses . | . . . . . . . . . . . . . . . Cargo Convoy Interrupts . | . . . . . . . . . . . . . . . Stealth | -11 -10 -10 -10 -9 -8 -7 -7 -6 -6 -6 -5 -5 -4 -4 --------- Run | Yrd Mat Min Exi Min Mat Fac Gar Fac Low Low Fac DSF Fac Ext Distress Signals 3 | . . . . . 1 . . . . . . . 1 1 Communications Jammed . | . . . . . . . . . . . . . . . Distress Signals . | . . . . . . . . . . . . . . . Times Spotted 115 | . 10 2 . 2 2 8 5 10 11 9 . 8 25 23 Peak Tracking Total 13 | . 3 3 . 2 4 3 5 7 6 9 . 7 7 13 Tactical Retreats 21 | . 1 . . 1 . 3 . 1 5 1 . 1 5 3 Traps | -11 -10 -10 -10 -9 -8 -7 -7 -6 -6 -6 -5 -5 -4 -4 ------- Run | Yrd Mat Min Exi Min Mat Fac Gar Fac Low Low Fac DSF Fac Ext Traps Triggered 10 | . 1 . . . . . 2 . . . . 4 . 3 Indirectly . | . . . . . . . . . . . . . . . Trap Hack Attempts . | . . . . . . . . . . . . . . . Triggered . | . . . . . . . . . . . . . . . Disarmed . | . . . . . . . . . . . . . . . Reprogrammed . | . . . . . . . . . . . . . . . Reused . | . . . . . . . . . . . . . . . Traps Extracted . | . . . . . . . . . . . . . . . Installed . | . . . . . . . . . . . . . . . Triggered . | . . . . . . . . . . . . . . . Machines | -11 -10 -10 -10 -9 -8 -7 -7 -6 -6 -6 -5 -5 -4 -4 ---------- Run | Yrd Mat Min Exi Min Mat Fac Gar Fac Low Low Fac DSF Fac Ext Machines Disabled 12 | . . . . . . . . . . . . . 11 1 Max in Single Turn 5 | . . . . . . . . . . . . . 5 1 Machines Repaired . | . . . . . . . . . . . . . . . Machines Dismantled . | . . . . . . . . . . . . . . . Machines Sabotaged . | . . . . . . . . . . . . . . . Overloaded Fab Kills . | . . . . . . . . . . . . . . . Hacking | -11 -10 -10 -10 -9 -8 -7 -7 -6 -6 -6 -5 -5 -4 -4 --------- Run | Yrd Mat Min Exi Min Mat Fac Gar Fac Low Low Fac DSF Fac Ext Machines Accessed 21 | . 2 1 1 . 2 5 1 3 . . 2 . 1 3 Terminals 12 | . . . . . 1 3 1 2 . . 2 . . 3 Fabricators 1 | . . . . . . . . . . . . . 1 . Repair Stations . | . . . . . . . . . . . . . . . Recycling Units 3 | . 2 . . . . 1 . . . . . . . . Scanalyzers 1 | . . . . . . . . 1 . . . . . . Garrison Access 2 | . . . . . 1 1 . . . . . . . . Total Hacks 38 | . 3 1 4 . 3 9 1 6 . . 4 . 3 4 Successful 19 | . 1 1 4 . 1 3 1 1 . . 3 . 2 2 Failed 19 | . 2 . . . 2 6 . 5 . . 1 . 1 2 Catastrophic 6 | . . . . . 1 1 . 3 . . . . . 1 Database Lockouts . | . . . . . . . . . . . . . . . Manual 9 | . 3 . . . 3 1 . . . . 1 . . 1 Terminals 21 | . . . . . 2 6 1 4 . . 4 . . 4 Fabricators 3 | . . . . . . . . . . . . . 3 . Repair Stations . | . . . . . . . . . . . . . . . Recycling Units 4 | . 3 . . . . 1 . . . . . . . . Scanalyzers 2 | . . . . . . . . 2 . . . . . . Garrison Access 3 | . . . . . 1 2 . . . . . . . . Terminal Hacks 14 | . . 1 4 . . 2 1 1 . . 3 . . 2 Record 6 | . . . 4 . . . . . . . 2 . . . Open Door 2 | . . 1 . . . . . . . . . . . 1 Open DSF 3 | . . . . . . 1 . 1 . . 1 . . . Emergency Access Points 2 | . . . . . . 1 1 . . . . . . . Zone Layout 1 | . . . . . . . . . . . . . . 1 Fabricator Hacks 2 | . . . . . . . . . . . . . 2 . Network Status 1 | . . . . . . . . . . . . . 1 . Build 1 | . . . . . . . . . . . . . 1 . Repair Station Hacks . | . . . . . . . . . . . . . . . Recycling Unit Hacks . | . . . . . . . . . . . . . . . Scanalyzer . | . . . . . . . . . . . . . . . Garrison Access Hacks 1 | . . . . . . 1 . . . . . . . . Unlock Access 1 | . . . . . . 1 . . . . . . . . Unauthorized Hacks 2 | . 1 . . . 1 . . . . . . . . . Terminals . | . . . . . . . . . . . . . . . Fabricators . | . . . . . . . . . . . . . . . Repair Stations . | . . . . . . . . . . . . . . . Recycling Units 1 | . 1 . . . . . . . . . . . . . Tunnel 1 | . 1 . . . . . . . . . . . . . Scanalyzers . | . . . . . . . . . . . . . . . Garrison Access 1 | . . . . . 1 . . . . . . . . . Eject 1 | . . . . . 1 . . . . . . . . . Data Cores Recovered . | . . . . . . . . . . . . . . . Used . | . . . . . . . . . . . . . . . Hacking Detections 12 | . 1 . . . . 3 1 3 . . 2 . 1 1 Full Trace Events 5 | . 1 . . . . 1 . 2 . . . . . 1 Feedback Events 1 | . . . . . . . . 1 . . . . . . Corruption 1 | . . . . . . . . 1 . . . . . . Feedback Blocked . | . . . . . . . . . . . . . . . Robot Schematics Acquired . | . . . . . . . . . . . . . . . Robots Built . | . . . . . . . . . . . . . . . Authchips . | . . . . . . . . . . . . . . . Time . | . . . . . . . . . . . . . . . Total Robot Build Rating . | . . . . . . . . . . . . . . . Part Schematics Acquired . | . . . . . . . . . . . . . . . Parts Built 2 | . . . . . . . . . . . . . 2 . Authchips . | . . . . . . . . . . . . . . . Time 117 | . . . . . . . . . . . . . 117 . Total Part Build Rating 14 | . . . . . . . . . . . . . 14 . Parts Repaired . | . . . . . . . . . . . . . . . Time . | . . . . . . . . . . . . . . . Parts Recycled . | . . . . . . . . . . . . . . . Recycled Matter . | . . . . . . . . . . . . . . . Retrieved Matter . | . . . . . . . . . . . . . . . Retrieved Components . | . . . . . . . . . . . . . . . Parts Scanalyzed . | . . . . . . . . . . . . . . . Part Schematics Acquired . | . . . . . . . . . . . . . . . Parts Damaged . | . . . . . . . . . . . . . . . Bothacking | -11 -10 -10 -10 -9 -8 -7 -7 -6 -6 -6 -5 -5 -4 -4 ------------ Run | Yrd Mat Min Exi Min Mat Fac Gar Fac Low Low Fac DSF Fac Ext Used RIF Installer . | . . . . . . . . . . . . . . . Robots Hacked 2 | . . . . . . 1 . . . . . . . 1 Non-combat 1 | . . . . . . 1 . . . . . . . . Combat 1 | . . . . . . . . . . . . . . 1 Robot Hacks Applied 2 | . . . . . . 1 . . . . . . . 1 parse_system 1 | . . . . . . . . . . . . . . 1 find_recycling 1 | . . . . . . 1 . . . . . . . . Relay Couplers Released 4 | . . . . . 4 . . . . . . . . . Ejected 4 | . . . . . 4 . . . . . . . . . Fabnet Peak Effective % . | . . . . . . . . . . . . . . . Robots Rewired . | . . . . . . . . . . . . . . . Allies Hacked . | . . . . . . . . . . . . . . . Hacks Repelled . | . . . . . . . . . . . . . . . Allies | -11 -10 -10 -10 -9 -8 -7 -7 -6 -6 -6 -5 -5 -4 -4 -------- Run | Yrd Mat Min Exi Min Mat Fac Gar Fac Low Low Fac DSF Fac Ext Total Allies 1 | . . . . . . . . . . . . . . 1 Largest Group 1 | . . . . . . . . . . . . . . 1 Highest-Rated Group 29 | . . . . . . . . . . . . . . 29 Highest-Rated Ally 29 | . . . . . . . . . . . . . . 29 Total Orders 1 | . . . . . . . . . . . . . . 1 ROAM 1 | . . . . . . . . . . . . . . 1 Ally Attacks 2 | . . . . . . . . . . . . . . 2 Total Damage 36 | . . . . . . . . . . . . . . 36 Kills . | . . . . . . . . . . . . . . . Allies Corrupted . | . . . . . . . . . . . . . . . Allies Melted 1 | . . . . . . . . . . . . . . 1 Intel | -11 -10 -10 -10 -9 -8 -7 -7 -6 -6 -6 -5 -5 -4 -4 ------- Run | Yrd Mat Min Exi Min Mat Fac Gar Fac Low Low Fac DSF Fac Ext Active Infowar (turns) 2408 | 5 657 161 256 84 134 292 93 142 373 123 45 43 . . Sensors 1669 | . . 93 256 84 134 292 93 142 373 123 45 34 . . Structural 1150 | . . . . . 39 292 93 142 373 123 45 43 . . Seismic 730 | 5 657 68 . . . . . . . . . . . . Cloaking 363 | . . . 106 84 134 39 . . . . . . . . ECM 49 | . . . . . . 12 . . 37 . . . . . Robot Analysis Total . | . . . . . . . . . . . . . . . Derelict Logs Recovered 2 | . . . . 1 . . . . . 1 . . . . Drone Launches 2 | . . . . . . . . . . . . . . 2 Drone Recoveries 1 | . . . . . . . . . . . . . . 1 Exploration | -11 -10 -10 -10 -9 -8 -7 -7 -6 -6 -6 -5 -5 -4 -4 ------------- Run | Yrd Mat Min Exi Min Mat Fac Gar Fac Low Low Fac DSF Fac Ext Turns Passed 3315 | 73 657 161 256 84 134 292 93 142 373 123 45 67 435 380 Spaces Moved 5711 | 36 411 347 678 227 253 540 160 397 1085 422 151 98 396 510 Core 106 | 9 . . . . . . . . . . . 47 5 45 Treads . | . . . . . . . . . . . . . . . Legs 227 | 27 200 . . . . . . . . . . . . . Wheels . | . . . . . . . . . . . . . . . Hover 1117 | . . . . . . 439 . . . . . 4 329 345 Flight 4261 | . 211 347 678 227 253 101 160 397 1085 422 151 47 62 120 Fastest Speed 25 | 50 37 37 37 37 34 34 29 29 29 29 29 29 25 26 Average Speed 41 | 131 95 40 37 37 34 45 29 29 29 29 29 40 52 43 Slowest Speed 370 | 250 370 117 37 37 34 114 29 29 29 29 29 56 150 112 Overloaded Moves . | . . . . . . . . . . . . . . . Propulsion Burnouts . | . . . . . . . . . . . . . . . Robots Hopped 17 | . . . 3 4 4 . . 4 . 1 . . . 1 Potential Cave-ins . | . . . . . . . . . . . . . . . Cave-ins Triggered . | . . . . . . . . . . . . . . . Exploration Rate (%) 43 | 3 48 66 93 50 26 14 34 11 94 48 5 91 13 58 Regions Visited 14 Branch Regions 6 Pre-discovered Areas 3 | . 1 1 1 . . . . . . . . . . . Known Exits Taken 2 | . . . . . . 1 . . . . 1 . . . Unknown Exits Taken 10 | 1 1 1 1 1 1 . . 1 1 1 . . 1 . Scrap Searched 6 | . . . . 1 . . . . 4 1 . . . . Spaces Dug . | . . . . . . . . . . . . . . . Terrain Destroyed 113 | . 18 9 . . . . . . . . . . 86 . Melee . | . . . . . . . . . . . . . . . Projectile 3 | . . . . . . . . . . . . . 3 . AOE 110 | . 18 9 . . . . . . . . . . 83 . Terrain Rammed . | . . . . . . . . . . . . . . . Walls Destroyed . | . . . . . . . . . . . . . . . Machines Disabled . | . . . . . . . . . . . . . . . Actions | -11 -10 -10 -10 -9 -8 -7 -7 -6 -6 -6 -5 -5 -4 -4 --------- Run | Yrd Mat Min Exi Min Mat Fac Gar Fac Low Low Fac DSF Fac Ext Total 6513 | 48 662 366 680 222 295 584 203 418 1142 420 151 126 581 615 Wait 527 | . 228 12 . . 41 27 1 14 50 . 1 1 133 19 Move 5665 | 35 410 346 671 218 244 539 159 390 1084 419 150 97 395 508 Hop 15 | . . . 3 4 4 . . 2 . 1 . . . 1 Pick Up 22 | 1 2 2 2 . 3 5 . 2 1 . . . 2 2 Fast Attach 50 | 7 3 1 . . 1 1 . 6 1 . . . 19 11 Attach 19 | . 2 . 1 . 2 3 . . . . . 3 4 4 Detach 14 | . 4 . . . . 1 . . . . . 1 3 5 Swap 17 | . 3 2 1 . . 3 4 . 3 . . 1 . . Drop 21 | . 2 2 2 . . 4 . 4 3 . . 2 . 2 Fire 43 | 5 8 1 . . . . . . . . . . 19 10 Melee 29 | . . . . . . 1 3 . . . . . 6 19 Ram . | . . . . . . . . . . . . . . . Kick . | . . . . . . . . . . . . . . . Crush . | . . . . . . . . . . . . . . . Escape Stasis 91 | . . . . . . . 36 . . . . 21 . 34 Rewire . | . . . . . . . . . . . . . . . Trap . | . . . . . . . . . . . . . . . Miscellaneous . | . . . . . . . . . . . . . . . Route ------- -11/Scrapyard -10/Materials (discovered 2 exits: [*Mat] / *Min) -10/Mines (discovered 2 exits: [*Mat] / *Exi) -10/Exiles (discovered 2 exits: [*Min x2]) -9/Mines (discovered 2 exits: *Mat x2) -8/Materials (discovered 2 exits: *Fac / Sto) -7/Factory (discovered 2 exits: *Fac / Gar) -7/Garrison -6/Factory (discovered 2 exits: *Fac / [*Low]) -6/Lower Caves -6/Lower Caves -5/Factory -5/DSF -4/Factory -4/Extension History --------- Turn | Location | Event 26 | -11/Scrapyard | Discovered new exit (range 14) 74 | -11/Scrapyard | Entered Materials 322 | -10/Materials | Build established: Mutant 562 | -10/Materials | Discovered new exit (range 16) 728 | -10/Materials | Discovered new exit (range 7) 731 | -10/Materials | Entered Mines 732 | -10/Mines | Learned location of Storage (-8) 736 | -10/Mines | Discovered new exit (range 8) 796 | -10/Mines | Met a Derelict who couldn't figure out how to use a Trap Extractor 826 | -10/Mines | A weapon hastily lodged in a ceiling crevice suddenly fell to the ground 890 | -10/Mines | Deemed a non-threat by the Exiles lab entrance 890 | -10/Mines | Discovered new exit (range 5) 892 | -10/Mines | Entered Exiles 892 | -10/Exiles | Found Exiles lab destroyed 898 | -10/Exiles | Discovered new exit (range 14) 1060 | -10/Exiles | Learned location of Zion (-7) 1144 | -10/Exiles | Discovered new exit (range 14) 1148 | -10/Exiles | Entered Mines 1150 | -9/Mines | Discovered new exit (range 6) 1183 | -9/Mines | Discovered new exit (range 12) 1232 | -9/Mines | Entered Materials 1232 | -8/Materials | Evolved 4 slots: Power x1, Propulsion x1, Utility x1, Weapon x1 1233 | -8/Materials | Identified exit to Storage 1357 | -8/Materials | Discovered new exit (range 10) 1366 | -8/Materials | Entered Factory 1366 | -7/Factory | Evolved 2 slots: Power x1, Propulsion x1 1373 | -7/Factory | Discovered new exit (range 6) 1657 | -7/Factory | Identified exit to Garrison 1658 | -7/Factory | Entered Garrison 1722 | -7/Garrison | Triggered checkpoint 1748 | -7/Garrison | Discovered new exit (range 9) 1751 | -7/Garrison | Entered Factory 1751 | -6/Factory | Evolved 2 slots: Power x1, Utility x1 1783 | -6/Factory | Discovered new exit (range 4) 1892 | -6/Factory | Discovered new exit (range 7) 1893 | -6/Factory | Entered Lower Caves 1914 | -6/Lower Caves | Encountered a Warlord checkpoint 1949 | -6/Lower Caves | Spotted B-75 Beast 2106 | -6/Lower Caves | Build established: Infiltrator-Sprinter 2260 | -6/Lower Caves | Discovered new exit (range 7) 2266 | -6/Lower Caves | Entered another Lower Caves area 2267 | -6/Lower Caves | Encountered a Warlord checkpoint 2275 | -6/Lower Caves | Discovered new exit (range 12) 2298 | -6/Lower Caves | Learned Factory garrison access intel 2357 | -6/Lower Caves | Ambushed by research squad 2389 | -6/Lower Caves | Entered Factory 2389 | -5/Factory | Evolved 2 slots: Propulsion x2 2390 | -5/Factory | Loaded intel: 4 garrison access locations 2434 | -5/Factory | Identified exit to DSF 2434 | -5/Factory | Entered DSF 2455 | -5/DSF | Additional patrols routed to DSF 2477 | -5/DSF | Released all parts (5) 2493 | -5/DSF | Discovered new exit (range 16) 2496 | -5/DSF | Core integrity fell below 50% 2501 | -5/DSF | Entered Factory 2501 | -4/Factory | Evolved 2 slots: Propulsion x1, Utility x1 2506 | -4/Factory | Lost 8 parts (3p4n1w) 2687 | -4/Factory | Fabricated Adv. Surge Thruster (x2) 2778 | -4/Factory | Build established: Mutant 2780 | -4/Factory | Garrison activated, responded to threat 2797 | -4/Factory | Lost 6 parts (1p3n2w) 2805 | -4/Factory | Destroyed 8 combat bots 2932 | -4/Factory | Discovered new exit (range 2) 2936 | -4/Factory | Entered Extension 2999 | -4/Extension | Spotted B-86 Titan 3086 | -4/Extension | Build established: Scavenger-Mutant 3234 | -4/Extension | Lost 13 parts (2p5n4u2w) 3287 | -4/Extension | Rescued a captive Derelict 3288 | -4/Extension | Spotted B-86 Titan 3293 | -4/Extension | Core integrity fell below 50% 3298 | -4/Extension | Core integrity fell below 20% 3316 | -4/Extension | Destroyed by G-67 Veteran with Field Laser Last Messages --------------- 03288_ Lgt. Nuclear Core destroyed. 03289_ VTOL Module destroyed. 03290_ Lgt. Nuclear Core destroyed. 03290_ Penetrated by Slug. 03290_ Door Terminal disabled. 03290_ VTOL Module destroyed. 03290_ Slug penetrates B-86 Titan. 03290_ Critical hit (Meltdown: +350). 03290_ Dropped Imp. Remote Datajack. 03291_ G-67 Veteran suffers critical hit (Burn). 03293_ Slug penetrates G-67 Veteran. 03293_ Penetrated by Slug. 03293_ T-07 Excavator destroyed. 03293_ VTOL Module destroyed. 03293_ Knocked back. 03293_ K-01 Serf Wheel blasted off. 03293_ K-01 Serf knocked back. 03294_ R-10 Processor collects Imp. Remote Datajack. 03297_ B-86 Titan activates siege mode. 03305_ System corrupted: Matter fused (-7). Map ----- +----------------------------------------------------+ | ?????????????????????????????????????????????????? | | ?????????????????????????????????????????????????? | | ?????????????????????????????????????????????????? | | ?????????????????????????????????????????????????? | | ?????????????????????????????????????????????????? | | ?????????????????????????????????????????????????? | | ?????????????????????????????????????????????????? | | ?????????????????????????????????????????????????? | | ?????????????????????????????????????????????????? | | ?????????????????????????????????????????????????? | | ?????????????????????????????????????????????????? | | ?????????????????????????????????????????????????? | | ?????????????????????????????????????????????????? | | ?????????????????????????????????????????????????? | | ?????????????????????????????????????????????????? | | ?????????????????????????????????????????????????? | | ?????????????????????????????????????????????????? | | ?????????????????????????????????????????????????? | | ?????????????????????????????????????????????????? | | ?????????????????????????????????????????????????? | | ?????????????????????????????????????????????????? | | ?????????????????????????????????????????????????? | | ?????????????????????????????????????????????????? | | ?????????????????????????????????????????????????? | | ##################################???????????????? | | @ u ????????? | | R ????????? | | ????????? | | t g g ?????????? | | R R gR ?????????? | | #######################################??????????? | | ?????????????????????????????????????????????????? | | ?????????????????????????????????????????????????? | | ?????????????????????????????????????????????????? | | ?????????????????????????????????????????????????? | | ?????????????????????????????????????????????????? | | ?????????????????????????????????????????????????? | | ?????????????????????????????????????????????????? | | | | | | | | | | | | | | | | | | | | | | | | | +----------------------------------------------------+ Best States ------------- Heat Dissipation 62 Energy Generation 39 Energy Capacity 415 Matter Stores 300 Matter Capacity 300 Sight Range 16 Robot Scan Range 18 Terrain Scan Density 10 ECM Strength 2 Cloak Strength 3 Additional Mass Support 9 Resistance: KI 20 Evasion (%) 67 Target Analysis 6 Item Schematics ----------------- None Robot Schematics ------------------ None Fabricated ------------ Adv. Surge Thruster | x2 | -4/Factory | Preloaded Repaired ---------- Nothing Alien Tech Used ----------------- None Achievements -------------- Can't Catch Me Leap Before You Look Please Form A Line Streaker Challenges ------------ None Game ------ Seed StorageSuperchargedCutter Manual? 0 Play Time 02:08:23 Cumulative 43.9 hours Start 2025.08.16 @ 18:45:34 End 2025.10.17 @ 20:50:09 Sessions 7 Manual Loads 0 Difficulty Rogue Special Mode None Game No. 205 Rogue 205 Adventurer 0 Explorer 0 Win Type - Total 0 Types 0/0/0/0/0/0/0/0/0/0 Lore% 24 Gallery% 20 Achievement% 20 Wizard Run 0 Options --------- Layout 0 ASCII 1 Keyboard 1 Movement Numpad Keybinds 1 Fullscreen 1 Font 18/X11 Map View 76x50 Zoom Use 0% Tactical HUD 1 Map Filters NONE Filters NONE Steam 1 RUN: 6cbde8a5-1be7-442b-88d1-8f85fb6f6ee8